fUSD/lending_fUSD_20251229
["ID","MTS","AMOUNT","RATE_DAILY","PERIOD"]
[400003708,1767010251687,-500.0,0.00041095,120]
[400003709,1767010251696,-846.86,0.00041095,120]
[400003710,1767010251706,-467.07305903,0.00041095,120]
[400003711,1767010251715,-846.86,0.00041095,120]
[400003712,1767010251724,-846.86,0.00041095,120]
[400003713,1767010251733,-846.86,0.00041095,120]
[400003714,1767010251743,-846.86,0.00041095,120]
[400003715,1767010251752,-846.86,0.00041095,120]
[400003716,1767010251761,-846.86,0.00041095,120]
[400003717,1767010251770,-846.86,0.00041095,120]
[400003718,1767010251779,-846.86,0.00041095,120]
[400003719,1767010251789,-846.86,0.00041095,120]
[400003720,1767010251798,-846.86,0.00041095,120]
[400003721,1767010251808,-846.86,0.00041095,120]
[400003722,1767010251818,-846.86,0.00041095,120]
[400003723,1767010251827,-846.86,0.00041095,120]
[400003724,1767010251836,-846.86,0.00041095,120]
[400003725,1767010251845,-846.86,0.00041095,120]
[400003726,1767010251854,-846.86,0.00041095,120]
[400003727,1767010251863,-846.86,0.00041095,120]
[400003728,1767010251872,-846.86,0.00041095,120]
[400003729,1767010251881,-846.86,0.00041095,120]
[400003730,1767010251890,-500.0,0.00041095,120]
[400003731,1767010251899,-500.0,0.00041095,120]
[400003732,1767010251908,-846.87330983,0.00041095,120]
[400003733,1767010251917,-500.0,0.00041095,120]
[400003734,1767010251926,-500.0,0.00041095,120]
[400003735,1767010251935,-500.0,0.00041095,120]
[400003736,1767010251943,-500.0,0.00041095,120]
[400003737,1767010251952,-500.0,0.00041095,120]
[400003738,1767010251961,-500.0,0.00041095,120]
[400003739,1767010251970,-500.0,0.00041095,120]
[400003740,1767010251980,-510.29771548,0.00041095,120]
[400003741,1767010251989,-500.0,0.00041095,120]
[400003742,1767010252003,-500.0,0.00041095,120]
[400003743,1767010252012,-500.0,0.00041095,120]
[400003744,1767010252021,-500.0,0.00041095,120]
[400003745,1767010252030,-500.0,0.00041095,120]
[400003746,1767010252039,-500.0,0.00041095,120]
[400003747,1767010252048,-234.59423176,0.00041095,120]
[400003748,1767010252057,-9969.2,0.00041095,120]
[400003749,1767010252067,-9969.2,0.00041095,120]
[400003750,1767010252075,-9969.2,0.00041095,120]
[400003751,1767010252086,-9969.2,0.00041095,120]
[400003752,1767010252095,-9969.2,0.00041095,120]
[400003753,1767010252103,-9969.2,0.00041095,120]
[400003754,1767010252112,-9969.2,0.00041095,120]
[400003755,1767010252121,-9969.2,0.00041095,120]
[400003756,1767010252130,-9969.2,0.00041095,120]
[400003757,1767010252140,-9969.2,0.00041095,120]
[400003758,1767010252149,-9969.2,0.00041095,120]
[400003759,1767010252158,-9969.2,0.00041095,120]
[400003760,1767010252169,-9969.2,0.00041095,120]
[400003761,1767010252180,-9969.2,0.00041095,120]
[400003762,1767010252189,-9969.2,0.00041095,120]
[400003763,1767010252200,-9969.2,0.00041095,120]
[400003764,1767010252210,-9969.2,0.00041095,120]
[400003765,1767010252219,-9969.2,0.00041095,120]
[400003766,1767010252230,-9969.2,0.00041095,120]
[400003767,1767010252239,-9969.2,0.00041095,120]
[400003768,1767010252250,-9969.2,0.00041095,120]
[400003769,1767010252260,-9969.2,0.00041095,120]
[400003770,1767010252270,-9969.2,0.00041095,120]
[400003771,1767010252280,-9969.314413,0.00041095,120]
[400003772,1767010252291,-672.91,0.00041095,120]
[400003773,1767010252300,-672.91,0.00041095,120]
[400003774,1767010252309,-672.91,0.00041095,120]
[400003775,1767010252319,-672.91,0.00041095,120]
[400003776,1767010252328,-672.91,0.00041095,120]
[400003777,1767010252337,-672.91,0.00041095,120]
[400003778,1767010252347,-672.91,0.00041095,120]
[400003779,1767010252357,-672.91,0.00041095,120]
[400003780,1767010252366,-500.0,0.00041095,120]
[400003781,1767010252378,-672.91,0.00041095,120]
[400003782,1767010252387,-672.91,0.00041095,120]
[400003783,1767010252396,-672.91,0.00041095,120]
[400003784,1767010252406,-672.91,0.00041095,120]
[400003785,1767010252415,-672.91,0.00041095,120]
[400003786,1767010252424,-672.91,0.00041095,120]
[400003787,1767010252434,-672.91,0.00041095,120]
[400003788,1767010252443,-672.91,0.00041095,120]
[400003789,1767010252452,-672.91,0.00041095,120]
[400003790,1767010252463,-672.91,0.00041095,120]
[400003791,1767010252473,-672.91,0.00041095,120]
[400003792,1767010252484,-672.91,0.00041095,120]
[400003793,1767010252496,-672.91,0.00041095,120]
[400003794,1767010252509,-672.91,0.00041095,120]
[400003795,1767010252519,-672.91,0.00041095,120]
[400003796,1767010252529,-672.93359538,0.00041095,120]
[400003797,1767010252538,-352.28453626,0.00041095,120]
[400003798,1767010252548,-1405.01,0.00041095,120]
[400003799,1767010252559,-1405.01,0.00041095,120]
[400003800,1767010252570,-1405.01,0.00041095,120]
[400003801,1767010252582,-1405.01,0.00041095,120]
[400003802,1767010252592,-1405.01,0.00041095,120]
[400003803,1767010252603,-1405.01,0.00041095,120]
[400003804,1767010252612,-1405.01,0.00041095,120]
[400003805,1767010252622,-1405.01,0.00041095,120]
[400003806,1767010252631,-1405.01,0.00041095,120]
[400003807,1767010252641,-1405.01,0.00041095,120]
[400003808,1767010252651,-1405.01,0.00041095,120]
[400003809,1767010252660,-1405.01,0.00041095,120]
[400003810,1767010252669,-1405.01,0.00041095,120]
[400003811,1767010252679,-1405.01,0.00041095,120]
[400003812,1767010252689,-1405.01,0.00041095,120]
[400003813,1767010252701,-1405.01,0.00041095,120]
[400003814,1767010252712,-1405.01,0.00041095,120]
[400003815,1767010252722,-1405.01,0.00041095,120]
[400003816,1767010252732,-1405.01,0.00041095,120]
[400003817,1767010252743,-1405.01,0.00041095,120]
[400003818,1767010252756,-1405.01,0.00041095,120]
[400003819,1767010252765,-1405.01,0.00041095,120]
[400003820,1767010252775,-1405.01,0.00041095,120]
[400003821,1767010252784,-1405.19542362,0.00041095,120]
[400003822,1767010252794,-158.23920005,0.00041095,120]
[400003823,1767010252804,-312.21181666,0.00041096,2]
[400003824,1767010252814,-2000.0,0.00041096,120]
[400003825,1767010252823,-1000.0,0.00041096,120]
[400003826,1767010252833,-2000.0,0.000411,30]
[400003827,1767010252842,-152.21,0.000411,14]
[400003828,1767010252851,-464.0,0.00041198,30]
[400003829,1767010252861,-150.0,0.00041227,120]
[400003830,1767010252871,-150.0,0.00041252,120]
[400003831,1767010252880,-150.0,0.00041292,120]
[400003832,1767010252890,-710.7557,0.00041293,3]
[400003833,1767010252900,-510.54,0.000413,30]
[400003834,1767010252912,-150.0,0.00041304,120]
[400003835,1767010252922,-150.0,0.00041399,2]
[400003836,1767010252932,-191.34125565,0.000414,120]
[400003837,1767010252941,-191.34,0.000414,120]
[400003838,1767010252951,-5059.94228447,0.000414,14]
[400003839,1767010252961,-246.50965399,0.000414,28]
[400003840,1767010252970,-647.78496636,0.000414,2]
[400003841,1767010252980,-150.0,0.00041483,120]
[400003842,1767010252989,-200.0,0.00041499,120]
[400003843,1767010253002,-50000.0,0.000415,42]
[400003844,1767010253012,-52584.56774669,0.000415,2]
[400003845,1767010253022,-1393.90258207,0.000415,4]
[400003846,1767010253032,-247.57713676,0.000415,31]
[400003847,1767010253042,-1770091.42149976,0.000415,120]
[400003848,1767010253529,-3586.819554,0.00015917,2]
[400003849,1767010253709,-2952.180446,0.00015917,2]
[400003850,1767010253720,-124.78100209,0.00016128,2]
[400003851,1767010253732,-26.21899791,0.00016128,2]
[400003852,1767010253745,-151.0,0.00016128,2]
[400003853,1767010253755,-427.36609178,0.000169,2]
[400003854,1767010253766,-6539.0,0.00018917,2]
[400003855,1767010253776,-1592.18233961,0.00021917,2]
[400003856,1767010253788,-3941.47226391,0.00021917,2]
[400003857,1767010253801,-1005.34539648,0.00021917,2]
[400003858,1767010253811,-4164.63292972,0.00024917,2]
[400003859,1767010535737,500.0,0.00027816,120]
[400003860,1767010536048,500.0,0.00027816,120]
[400003861,1767010536292,354.14576544,0.00027816,120]
[400003864,1767010578598,500.0,0.00027816,120]
[400003887,1767010873960,500.0,0.00027816,120]
[400003888,1767010874207,500.0,0.00027816,120]
[400003889,1767010874815,500.0,0.00027816,120]
[400003890,1767010875056,500.0,0.00027816,120]
[400003902,1767010890544,500.0,0.00027816,120]
[400003903,1767010890776,500.0,0.00027816,120]
[400003904,1767010890996,500.0,0.00027816,120]
[400003905,1767010891221,500.0,0.00027816,120]
[400003906,1767010891534,758.32744833,0.0003,120]
[400003927,1767011119851,7347.52564809,9e-05,2]
[400003929,1767011160925,10000.01,8e-05,2]
[400003930,1767011160947,3191.61660912,8e-05,2]
[400003933,1767011165041,3865.81008017,0.00011,2]
[400003943,1767011254025,500.0,0.00027816,120]
[400003944,1767011254288,500.0,0.00027816,120]
[400003945,1767011254526,515.90428351,0.00027816,120]
[400003946,1767011270174,2942.58331071,0.00012,2]
[400003947,1767011270201,2990.16959841,0.00012,2]
[400003948,1767011289122,306.70163103,0.000125,2]
[400003950,1767011318013,6703.13877056,0.0001,2]
[400003951,1767011318037,6542.64984483,0.0001,2]
[400003952,1767011422290,1053.66,7.942e-05,2]
[400003953,1767011422480,1053.66,8.36e-05,2]
[400003954,1767011422694,1053.66,8.778e-05,2]
[400003955,1767011422909,1053.66,9.196e-05,2]
[400003956,1767011423127,1053.66,9.614e-05,2]
[400003957,1767011423514,1053.66,0.00010032,2]
[400003958,1767011423717,1053.66,0.0001045,2]
[400003959,1767011423999,1053.66,0.00010868,2]
[400003960,1767011424202,1053.66,0.00011286,2]
[400003961,1767011424758,517.07,0.00011704,2]
[400003962,1767011424782,536.59,0.00011704,2]
[400003963,1767011424828,1053.66,0.00012122,2]
[400003964,1767011424883,1053.66,0.0001254,2]
[400003972,1767011432218,-1053.66,0.00012958,2]
[400003974,1767011432228,-846.72185097,0.00013376,2]
[400003975,1767011432240,-206.93814903,0.00013376,2]
[400003976,1767011432249,-57.84239012,0.00013698,2]
[400003977,1767011432261,-442.15760988,0.00013698,2]
[400003978,1767011432270,-80.84239012,0.00013698,2]
[400003979,1767011432281,-419.15760988,0.00013698,2]
[400003980,1767011432290,-500.0,0.00013698,2]
[400003981,1767011432303,-351.07,0.00013699,2]
[400003982,1767011432312,-1053.66,0.00013794,2]
[400003983,1767011432321,-1053.66,0.00014212,2]
[400003984,1767011432334,-300.0,0.00014572,2]
[400003985,1767011432343,-150.0,0.00014572,2]
[400003986,1767011432352,-500.0,0.00014573,2]
[400003987,1767011432362,-30.85239012,0.00014573,2]
[400003988,1767011432373,-469.53144134,0.00014573,2]
[400003989,1767011432383,-466.57897047,0.00014573,2]
[400003990,1767011432393,-500.0,0.00014573,2]
[400003991,1767011432402,-349.51669635,0.00014573,2]
[400003992,1767011432417,-150.48330365,0.00014573,2]
[400003993,1767011432427,-392.14103523,0.00014573,2]
[400003994,1767011432438,-107.85896477,0.00014573,2]
[400003995,1767011432448,-500.0,0.00014573,2]
[400003996,1767011432457,-501.47157547,0.00014573,2]
[400003997,1767011432467,-163.91470139,0.00014573,2]
[400003998,1767011432476,-417.48433915,0.00014573,2]
[400003999,1767011432530,-88.0374044,0.00014573,2]
[400004000,1767011432539,-500.0,0.00014573,2]
[400004001,1767011432550,-172.80596156,0.00014573,2]
[400004002,1767011432559,-160.20652096,0.00014573,2]
[400004003,1767011432569,-501.08830935,0.00014573,2]
[400004004,1767011432578,-500.0,0.00014573,2]
[400004006,1767011432588,-500.0,0.00014573,2]
[400004007,1767011432599,-500.0,0.00014573,2]
[400004008,1767011432608,-500.0,0.00014573,2]
[400004009,1767011432618,-500.0,0.00014573,2]
[400004010,1767011432627,-503.89734133,0.00014573,2]
[400004011,1767011432636,-1053.66,0.0001463,2]
[400004012,1767011432645,-4786.04395535,0.00015,2]
[400004013,1767011432655,-1053.66,0.00015048,2]
[400004014,1767011432664,-250.0,0.00015068,2]
[400004015,1767011432674,-300.0,0.00015068,2]
[400004016,1767011432683,-195.0,0.00015068,2]
[400004017,1767011432693,-463.94934987,0.00015121,2]
[400004018,1767011432702,-539.18853574,0.00015464,2]
[400004019,1767011432712,-1053.66,0.00015466,2]
[400004020,1767011432721,-195.0,0.00015694,2]
[400004021,1767011432731,-500.0,0.00015872,2]
[400004022,1767011432741,-346.61177544,0.00015872,2]
[400004023,1767011432750,-495.94750493,0.00015872,2]
[400004024,1767011432759,-468.03886919,0.00015872,2]
[400004025,1767011432769,-500.0,0.00015872,2]
[400004026,1767011432778,-500.0,0.00015872,2]
[400004027,1767011432787,-500.0,0.00015872,2]
[400004028,1767011432798,-500.0,0.00015872,2]
[400004029,1767011432807,-500.0,0.00015872,2]
[400004030,1767011432816,-3110.70447187,0.00015873,2]
[400004031,1767011432828,-434.34,0.00015873,2]
[400004032,1767011432839,-1611.81509603,0.00015873,2]
[400004039,1767011438256,-500.0,0.00015872,2]
[400004040,1767011438265,-109.89157399,0.00015872,2]
[400004041,1767011438380,-345.70008883,0.00015872,2]
[400004042,1767011438391,-44.40833718,0.00015872,2]
[400004043,1767011438400,-500.0,0.00015872,2]
[400004044,1767011438410,-500.0,0.00015872,2]
[400004045,1767011438419,-328.5132583,0.00015872,2]
[400004046,1767011438428,-500.0,0.00015872,2]
[400004047,1767011438438,-500.0,0.00015872,2]
[400004048,1767011438447,-500.0,0.00015872,2]
[400004049,1767011438455,-246.63541972,0.00015872,2]
[400004050,1767011438464,-500.0,0.00015872,2]
[400004051,1767011438473,-425.96504563,0.00015872,2]
[400004052,1767011438484,-74.03495437,0.00015872,2]
[400004053,1767011438493,-500.0,0.00015872,2]
[400004054,1767011438503,-223.17211178,0.00015872,2]
[400004055,1767011438512,-500.0,0.00015872,2]
[400004056,1767011438521,-107.32612791,0.00015872,2]
[400004057,1767011438532,-392.67387209,0.00015872,2]
[400004058,1767011438541,-29.29539249,0.00015872,2]
[400004095,1767011440371,-196.27776212,0.00015772,2]
[400004096,1767011440380,-428.12487889,0.00015872,2]
[400004097,1767011440390,-500.0,0.00015872,2]
[400004098,1767011440399,-159.28144934,0.00015872,2]
[400004099,1767011440412,-340.71855066,0.00015872,2]
[400004100,1767011440421,-500.0,0.00015872,2]
[400004101,1767011440431,-396.18568778,0.00015872,2]
[400004102,1767011440442,-103.81431222,0.00015872,2]
[400004103,1767011440451,-500.0,0.00015872,2]
[400004104,1767011440460,-500.0,0.00015872,2]
[400004105,1767011440469,-500.0,0.00015872,2]
[400004106,1767011440479,-500.0,0.00015872,2]
[400004107,1767011440488,-500.0,0.00015872,2]
[400004108,1767011440497,-441.18568778,0.00015872,2]
[400004109,1767011440745,-58.81431222,0.00015872,2]
[400004110,1767011440755,-500.0,0.00015872,2]
[400004111,1767011440765,-484.74034626,0.00015872,2]
[400004112,1767011440777,-15.25965374,0.00015872,2]
[400004113,1767011440787,-500.0,0.00015872,2]
[400004114,1767011440798,-500.0,0.00015872,2]
[400004115,1767011440807,-500.0,0.00015872,2]
[400004116,1767011440818,-500.0,0.00015872,2]
[400004117,1767011440827,-500.0,0.00015872,2]
[400004118,1767011440837,-500.0,0.00015872,2]
[400004119,1767011440847,-500.0,0.00015872,2]
[400004120,1767011440856,-500.0,0.00015872,2]
[400004121,1767011440866,-159.85529153,0.00015872,2]
[400004122,1767011440899,-340.14470847,0.00015872,2]
[400004123,1767011440911,-172.13331994,0.00015872,2]
[400004124,1767011440923,-327.86668006,0.00015872,2]
[400004125,1767011440932,-500.0,0.00015872,2]
[400004127,1767011440941,-5615.25146211,0.00015873,2]
[400004129,1767011440951,-11997.74518315,0.00015873,2]
[400004130,1767011440962,-1339.99496718,0.00015873,2]
[400004131,1767011440974,-588.0,0.00015873,2]
[400004132,1767011440987,-306.069,0.00015873,2]
[400004133,1767011440998,-473.83039487,0.00015873,2]
[400004134,1767011441010,-974522.24942479,0.00015873,2]
[400004135,1767011441021,-343.27543704,0.00015873,2]
[400004136,1767011441031,-1053.66,0.00015884,2]
[400004137,1767011441041,-9999.99,0.00015973,2]
[400004138,1767011441050,-150.99,0.00015973,2]
[400004139,1767011441059,-2293.62,0.00015973,2]
[400004140,1767011441069,-999.99,0.00015973,2]
[400004141,1767011441078,-9999.99,0.00015973,2]
[400004142,1767011441087,-9999.99,0.00015973,2]
[400004143,1767011441095,-150.99,0.00015973,2]
[400004144,1767011441105,-2351.93,0.00015973,2]
[400004145,1767011441113,-299.99,0.00015973,2]
[400004146,1767011441122,-9999.99,0.00015973,2]
[400004147,1767011441132,-501.72362349,0.00015973,2]
[400004148,1767011441140,-1000.0,0.00015988,2]
[400004149,1767011441150,-2037.43,0.0001599,2]
[400004150,1767011441159,-22114.66624448,0.00016,2]
[400004151,1767011441168,-168.0,0.0001629,2]
[400004152,1767011441177,-168.0,0.00016314,2]
[400004153,1767011441186,-343.27543702,0.00016387,2]
[400004154,1767011441196,-168.82740059,0.00016438,2]
[400004155,1767011441205,-168.0,0.00016597,2]
[400004156,1767011441215,-168.0,0.00016667,2]
[400004157,1767011441224,-164.75,0.00016712,2]
[400004158,1767011441233,-1282.43425559,0.000169,2]
[400004159,1767011441242,-165.98451418,0.000169,2]
[400004160,1767011441251,-172.24401599,0.000169,2]
[400004161,1767011441260,-1259.93290632,0.000169,2]
[400004162,1767011441269,-1312.21969384,0.000169,2]
[400004163,1767011441280,-151.02290212,0.000169,2]
[400004164,1767011441290,-164.90452396,0.000169,2]
[400004165,1767011441300,-355.4767879,0.000169,2]
[400004166,1767011441309,-202.58100541,0.000169,2]
[400004167,1767011441318,-500.0,0.00016921,2]
[400004168,1767011441327,-168.0,0.00016929,2]
[400004169,1767011441337,-300.0,0.00016999,2]
[400004170,1767011441348,-250.0,0.00017,2]
[400004171,1767011441356,-1243418.06900813,0.00017,2]
[400004172,1767011441416,-549.76957592,0.00017,2]
[400004173,1767011441428,-4466.49254007,0.00017,2]
[400004180,1767011443979,-343.27543702,0.000169,2]
[400004182,1767011443988,-4002.62456298,0.00017,2]
[400004185,1767011443999,-3045.0,0.00017,2]
[400004186,1767011444784,-405.45245245,0.00017,2]
[400004187,1767011444796,-257.40181462,0.00017,2]
[400004188,1767011444942,-502.99139351,0.00017,2]
[400004189,1767011444954,-254.13363879,0.00017,2]
[400004190,1767011444966,-633.92371775,0.00017,2]
[400004191,1767011444978,-1738.0,0.00017,2]
[400004192,1767011444989,-2279.70584383,0.00017,2]
[400004193,1767011445000,-637.30701203,0.00017,2]
[400004194,1767011445012,-1035.94218875,0.00017,2]
[400004195,1767011445023,-1014.09508778,0.00017,2]
[400004196,1767011445035,-2145.14831811,0.00017,2]
[400004197,1767011445115,-763108.64214888,0.00017,2]
[400004198,1767011445127,-3202.62375933,0.00017,2]
[400004199,1767011445139,-16015.93271301,0.00017,2]
[400004213,1767011446424,-292.50000001,0.00017,2]
[400004216,1767011505975,380.42,0.00025099,120]
[400004217,1767011588048,7356.1,0.00012829,2]
[400004218,1767011588074,643.9,0.00012829,2]
[400004235,1767011966424,165.28,0.00012363,2]
[400004306,1767012631379,-373.6063,0.00013499,2]
[400004307,1767012631388,-250.0,0.00013499,2]
[400004308,1767012631397,-300.0,0.00014572,2]
[400004309,1767012631406,-137.32098506,0.00014573,2]
[400004310,1767012631417,-282.33286881,0.00014573,2]
[400004311,1767012631428,-80.34614613,0.00014573,2]
[400004312,1767012631438,-500.0,0.00014573,2]
[400004313,1767012631448,-293.80385387,0.00014573,2]
[400004314,1767012631460,-206.19614613,0.00014573,2]
[400004315,1767012631469,-406.31668465,0.00014601,2]
[400004316,1767012631479,-212.31716922,0.00014764,2]
[400004317,1767012631494,-51.09283078,0.00014764,2]
[400004318,1767012631503,-195.0,0.00014849,2]
[400004319,1767012631513,-300.0,0.00014849,2]
[400004320,1767012631522,-250.0,0.00014849,2]
[400004321,1767012631532,-999.0,0.00014863,3]
[400004322,1767012631541,-208.46,0.00014977,2]
[400004323,1767012631551,-3583.9099182,0.00015021,2]
[400004324,1767012631566,-2471.96661148,0.00015021,2]
[400004325,1767012631581,-344.81,0.00015021,2]
[400004326,1767012631592,-3124.78462949,0.00015021,2]
[400004327,1767012631604,-860.0,0.00015021,2]
[400004328,1767012631615,-1342.64096061,0.00015021,2]
[400004330,1767012631627,-4691.93207833,0.00015021,2]
[400004333,1767012631647,-477.97880591,0.00015021,2]
[400004334,1767012631658,-990.02398659,0.00015021,2]
[400004335,1767012631670,-1794.47750331,0.00015021,2]
[400004337,1767012631681,-8227.48021043,0.00015021,2]
[400004339,1767012631694,-1250.4031,0.00015021,2]
[400004341,1767012631704,-2354.96308394,0.00015021,2]
[400004342,1767012631715,-2010.45162671,0.00015021,2]
[400004343,1767012637612,-559.71218413,0.0001502,2]
[400004344,1767012637622,-500.0,0.0001502,2]
[400004345,1767012637632,-383.74758645,0.0001502,2]
[400004346,1767012637643,-49.40162786,0.0001502,2]
[400004347,1767012637653,-551.45718569,0.0001502,2]
[400004348,1767012637662,-500.0,0.0001502,2]
[400004349,1767012637671,-255.58513791,0.0001502,2]
[400004350,1767012637680,-500.0,0.0001502,2]
[400004351,1767012637689,-500.0,0.0001502,2]
[400004352,1767012637699,-500.0,0.0001502,2]
[400004353,1767012637708,-500.0,0.0001502,2]
[400004354,1767012637718,-343.81027483,0.0001502,2]
[400004355,1767012637728,-416.57435008,0.0001502,2]
[400004356,1767012637738,-498.035637,0.0001502,2]
[400004357,1767012637747,-500.0,0.0001502,2]
[400004359,1767012637757,-500.0,0.0001502,2]
[400004360,1767012637768,-500.0,0.0001502,2]
[400004362,1767012637778,-170.09376054,0.0001502,2]
[400004364,1767012637789,-500.0,0.0001502,2]
[400004366,1767012637798,-303.96217618,0.0001502,2]
[400004368,1767012637808,-500.0,0.0001502,2]
[400004370,1767012637817,-474.74458785,0.0001502,2]
[400004372,1767012637826,-500.0,0.0001502,2]
[400004374,1767012637835,-500.0,0.0001502,2]
[400004376,1767012637845,-500.0,0.0001502,2]
[400004378,1767012637854,-500.0,0.0001502,2]
[400004380,1767012637863,-500.0,0.0001502,2]
[400004382,1767012637872,-500.0,0.0001502,2]
[400004384,1767012637881,-500.0,0.0001502,2]
[400004386,1767012637891,-500.0,0.0001502,2]
[400004388,1767012637901,-500.0,0.0001502,2]
[400004390,1767012637910,-500.0,0.0001502,2]
[400004392,1767012637919,-500.0,0.0001502,2]
[400004394,1767012637928,-500.0,0.0001502,2]
[400004396,1767012637938,-500.0,0.0001502,2]
[400004398,1767012637948,-500.0,0.0001502,2]
[400004400,1767012637957,-500.0,0.0001502,2]
[400004402,1767012637967,-15304.77273189,0.00015021,2]
[400004405,1767012637979,-3642.12347851,0.00015021,2]
[400004418,1767012639513,-3828.86735665,0.00015021,2]
[400004419,1767012639524,-5678.50813704,0.00015021,2]
[400004420,1767012639574,-1759.8369796,0.00015021,2]
[400004421,1767012639586,-644.20590704,0.00015021,2]
[400004422,1767012639598,-3417.44357492,0.00015021,2]
[400004423,1767012639610,-853.42086176,0.00015021,2]
[400004424,1767012639621,-1035.22745427,0.00015021,2]
[400004425,1767012639632,-350.20584191,0.00015021,2]
[400004426,1767012639646,-1375.598704,0.00015021,2]
[400004427,1767012639658,-928583.96645741,0.00015021,2]
[400004428,1767012639667,-200.0,0.00015078,2]
[400004429,1767012639677,-1323.1,0.00015084,2]
[400004430,1767012639686,-300.0,0.0001512,2]
[400004431,1767012639696,-472.53758265,0.00015121,2]
[400004432,1767012639705,-299.99,0.00015121,2]
[400004433,1767012639715,-2293.62,0.00015121,2]
[400004434,1767012639725,-150.99,0.00015121,2]
[400004435,1767012639734,-999.99,0.00015121,2]
[400004436,1767012639744,-2351.93,0.00015121,2]
[400004437,1767012639753,-7626.04,0.00015121,2]
[400004438,1767012639763,-1606.82,0.00015121,2]
[400004439,1767012639772,-9999.99,0.00015121,2]
[400004440,1767012639781,-150.99,0.00015121,2]
[400004441,1767012639791,-9999.99,0.00015121,2]
[400004442,1767012639801,-9999.99,0.00015121,2]
[400004443,1767012639810,-812.84151911,0.00015121,2]
[400004444,1767012639819,-734.14,0.00015121,2]
[400004445,1767012639829,-734.14,0.00015395,2]
[400004446,1767012639839,-161.49,0.00015537,2]
[400004447,1767012639849,-9999.99,0.00015537,2]
[400004448,1767012639859,-3240.0,0.00015537,2]
[400004449,1767012639869,-19113.23,0.00015537,2]
[400004450,1767012639883,-734.14,0.00015668,2]
[400004451,1767012639892,-655.0693,0.00015773,2]
[400004452,1767012639902,-1000.0,0.00015773,2]
[400004453,1767012639912,-2500.0,0.00015773,2]
[400004454,1767012639921,-7712.30670104,0.00015845,2]
[400004455,1767012639930,-523.32628113,0.00015845,2]
[400004456,1767012639939,-151.0,0.00015854,2]
[400004457,1767012639949,-151.0,0.00015854,2]
[400004458,1767012639958,-151.0,0.00015863,2]
[400004459,1767012639967,-500.0,0.00015863,2]
[400004460,1767012639978,-500.0,0.00015863,2]
[400004461,1767012639988,-151.0,0.00015866,2]
[400004462,1767012639998,-151.0,0.00015866,2]
[400004463,1767012640008,-1242.956,0.00015871,2]
[400004464,1767012640017,-168.35534987,0.00015871,2]
[400004466,1767012640026,-535.35055637,0.00015872,2]
[400004467,1767012640036,-734.14,0.00015942,2]
[400004468,1767012640044,-99051.19659455,0.00015945,2]
[400004469,1767012640054,-523.32628113,0.00015954,2]
[400004470,1767012640063,-433.47174293,0.00015973,2]
[400004471,1767012640072,-501.72362349,0.00015973,2]
[400004472,1767012640081,-400000.00683123,0.00016,2]
[400004473,1767012640090,-523.32628113,0.00016062,2]
[400004474,1767012640100,-426.72,0.00016162,2]
[400004475,1767012640111,-734.14,0.00016216,2]
[400004476,1767012640120,-150.0,0.00016219,2]
[400004477,1767012640130,-150.0,0.00016219,2]
[400004478,1767012640139,-150.0,0.00016219,2]
[400004479,1767012640149,-150.0,0.00016219,2]
[400004480,1767012640159,-150.0,0.00016219,2]
[400004481,1767012640168,-150.0,0.00016219,2]